bitfinex-derivatives/quotes_SOLF0:USTF0_20251024
["timestamp","ask_amount","ask_price","bid_price","bid_amount"]
[1761305594418,2.2,191.21,191.17,2.40123822]
[1761305595117,2.2,191.21,191.17,5.02123822]
[1761305596721,2.2,191.21,191.17,2.62]
[1761305596917,2.2,191.21,191.17,5.02123822]
[1761305598018,2.2,191.21,191.18,2.62]
[1761305598215,4.7053,191.24,191.18,2.62]
[1761305598621,2.2,191.25,191.18,2.62]
[1761305599326,2.2,191.24,191.18,2.62]
[1761305599829,4.7074,191.16,191.08,5.02123822]
[1761305600123,2.2,191.15,191.08,5.02123822]
[1761305600519,6.9076,191.15,191.08,2.62]
[1761305600727,6.9076,191.15,191.08,5.02123822]
[1761305601217,4.7076,191.15,191.08,2.62]
[1761305601417,4.7076,191.15,191.09,2.40123822]
[1761305601418,2.2,191.15,191.09,2.40123822]
[1761305601613,2.2,191.15,191.08,2.62]
[1761305603021,2.2,191.15,191.08,5.02123822]
[1761305603824,2.2,191.15,191.03,0.9105657]
[1761305603825,2.2,191.15,191.04,2.62]
[1761305604035,2.2,191.15,191.07,2.62]
[1761305605122,2.2,191.15,191.08,2.62]
[1761305608828,2.2,191.2,191.08,2.62]
[1761305609027,2.2,191.18,191.08,2.62]
[1761305609220,2.2,191.16,191.08,2.62]
[1761305609721,4.7075,191.15,191.08,2.62]
[1761305609928,2.2,191.14,191.04,5.11123822]
[1761305610237,4.09029194,191.13,191.05,2.71]
[1761305610424,2.2,191.14,191.05,2.71]
[1761305610623,4.08981881,191.13,191.05,2.71]
[1761305610921,6.9079,191.14,191.05,2.71]
[1761305611122,4.08982115,191.13,191.05,2.71]
[1761305611323,4.09556248,191.12,191.05,2.71]
[1761305611529,4.09556248,191.12,190.97,2.71]
[1761305611530,4.60123822,191.06,190.97,2.71]
[1761305611739,2.2,191.04,190.97,2.71]
[1761305612044,6.9112,191.0,190.93,2.71]
[1761305612533,2.2,190.99,190.92,0.91113788]
[1761305612924,2.2,190.99,190.89,2.71]
[1761305613226,2.2,190.96,190.86,2.71]
[1761305613422,16.08843458,190.98,190.86,2.71]
[1761305613423,2.2,190.94,190.86,2.71]
[1761305614331,6.9115,190.99,190.87,2.71]
[1761305614518,4.07661307,190.98,190.89,2.71]
[1761305614828,4.7119,190.98,190.89,2.71]
[1761305615018,2.2,190.98,190.89,2.71]
[1761305615421,2.2,190.94,190.83,0.9116033]
[1761305615729,106.25164307,191.0,190.79,2.71]
[1761305615730,2.2,190.92,190.79,2.71]
[1761305616032,2.2,190.92,190.82,2.71]
[1761305618327,2.2,190.92,190.81,2.71]
[1761305618932,2.2,190.91,190.81,2.71]
[1761305620133,2.2,190.91,190.78,0.91183021]
[1761305620134,4.7143,190.88,190.78,0.91183021]
[1761305620330,6.9143,190.88,190.79,2.71]
[1761305620531,2.2,190.87,190.79,2.71]
[1761305620933,6.9147,190.86,190.79,2.71]
[1761305621232,4.77404338,190.96,190.79,2.71]
[1761305621432,2.2,190.94,190.79,2.71]
[1761305621637,2.2,190.89,190.79,2.71]
[1761305622326,2.2,190.89,190.76,0.91198553]
[1761305622531,2.2,190.88,190.76,0.91198553]
[1761305622731,2.2,190.88,190.76,3.62198553]
[1761305622932,2.2,190.88,190.76,0.91198553]
[1761305623237,5.82488487,190.94,190.74,4.7174]
[1761305623238,2.2,190.85,190.77,2.71]
[1761305624141,6.9149,190.85,190.77,2.71]
[1761305624327,6.9149,190.85,190.74,62.0]
[1761305624328,2.2,190.84,190.74,2.71]
[1761305624736,6.9154,190.83,190.74,2.71]
[1761305625135,2.2,190.83,190.74,2.71]
[1761305626030,2.2,190.88,190.74,2.71]
[1761305626232,2.2,190.88,190.77,2.71]
[1761305627138,2.2,190.86,190.77,2.71]
[1761305627933,6.9148,190.86,190.77,2.71]
[1761305629437,2.2,190.84,190.73,3.62208114]
[1761305629740,2.2,190.84,190.74,2.71]
[1761305629941,4.7158,190.82,190.74,2.71]
[1761305630538,6.9151,190.85,190.74,2.71]
[1761305630744,2.2,190.84,190.74,2.71]
[1761305631544,1.28,190.76,190.59,2.71]
[1761305631745,1.28,190.73,190.59,2.71]
[1761305632235,1.28,190.67,190.59,2.71]
[1761305632632,3.54411651,190.74,190.48,2.71]
[1761305632633,1.28,190.65,190.48,2.71]
[1761305632834,1.28,190.61,190.48,6.25411651]
[1761305633034,4.75446044,190.78,190.52,3.54411651]
[1761305633035,1.28,190.65,190.52,3.54411651]
[1761305633242,1.28,190.65,190.54,2.71]
[1761305633448,1.28,190.78,190.54,2.71]
[1761305633647,1.28,190.76,190.61,2.71]
[1761305634141,1.28,190.81,190.65,2.71]
[1761305634342,1.28,190.81,190.62,46.94]
[1761305634343,1.28,190.81,190.68,2.71]
[1761305634550,4.7149,190.85,190.69,2.71]
[1761305634741,5.9949,190.85,190.69,2.71]
[1761305635140,5.9949,190.85,190.71,2.71]
[1761305635447,5.9949,190.85,190.72,2.71]
[1761305635633,1.28,190.89,190.73,62.0]
[1761305635841,1.28,190.89,190.74,2.71]
[1761305636743,1.28,190.89,190.76,2.71]
[1761305637245,4.7133,190.92,190.76,2.71]
[1761305637450,1.42733,190.93,190.79,2.71]
[1761305637651,0.14733,190.93,190.79,2.71]
[1761305637852,0.14733,190.93,190.78,3.54411651]
[1761305637853,0.14733,190.93,190.83,2.71]
[1761305638050,0.14733,190.93,190.85,2.71]
[1761305638539,0.14733,190.93,190.87,2.71]
[1761305638743,0.14733,190.93,190.89,2.71]
[1761305638945,1.28,191.05,190.89,2.71]
[1761305639344,1.28,191.05,190.89,7.4237]
[1761305639546,3.54411651,191.07,190.91,2.82]
[1761305639747,1.28,191.07,190.93,2.82]
[1761305639948,1.28,191.07,190.94,2.82]
[1761305640551,5.9897,191.06,190.95,62.0]
[1761305640741,5.9897,191.06,190.96,2.82]
[1761305640949,1.28,191.06,190.96,2.82]
[1761305641554,1.28,191.06,190.97,2.82]
[1761305642150,4.709,191.09,190.97,2.82]
[1761305642342,5.989,191.09,190.97,2.82]
[1761305642748,82.9680275,191.2,190.97,2.82]
[1761305642749,1.28,191.13,190.97,2.82]
[1761305642954,1.28,191.13,191.0,2.82]
[1761305643250,1.28,191.17,191.04,2.82]
[1761305643451,1.28,191.21,191.04,2.82]
[1761305643755,4.7067,191.19,191.06,2.82]
[1761305643954,4.7067,191.19,191.04,4.7101]
[1761305643955,4.7067,191.19,191.08,2.82]
[1761305644155,1.28,191.21,191.08,2.82]
[1761305644956,3.54411651,191.25,191.08,2.82]
[1761305644957,4.7055,191.24,191.08,2.82]
[1761305645142,4.7055,191.24,191.1,2.82]
[1761305645349,1.28,191.25,191.1,2.82]
[1761305645959,4.88861146,191.24,191.1,2.82]
[1761305646257,1.28,191.24,191.12,2.82]
[1761305647554,4.7052,191.25,191.12,2.82]
[1761305648050,4.82411651,191.22,191.12,2.82]
[1761305648250,1.28,191.22,191.13,46.62]
[1761305648650,1.28,191.22,191.13,111.44]
[1761305648959,4.706,191.21,191.14,46.56]
[1761305649155,1.28,191.22,191.14,49.38]
[1761305649356,4.88292573,191.24,191.15,2.82]
[1761305649550,3.54411651,191.25,191.15,2.82]
[1761305651054,1.28,191.26,191.15,2.82]
[1761305651358,1.28,191.26,191.17,2.82]
[1761305651945,1.28,191.36,191.19,2.82]
[1761305652152,1.28,191.32,191.19,2.82]
[1761305652352,1.28,191.32,191.21,2.82]
[1761305652751,5.9834,191.32,191.21,2.82]
[1761305652946,5.9834,191.32,191.22,46.48]
[1761305653156,5.9834,191.32,191.22,49.3]
[1761305653350,1.28,191.32,191.23,2.82]
[1761305653551,1.28,191.36,191.23,2.82]
[1761305653762,1.28,191.36,191.25,2.82]
[1761305653959,5.9824,191.36,191.25,2.82]
[1761305654162,3.54411651,191.42,191.25,2.82]
[1761305654356,6.14823642,191.41,191.25,2.82]
[1761305654547,4.7017,191.39,191.25,2.82]
[1761305655048,4.7022,191.37,191.27,2.82]
[1761305656260,4.7026,191.35,191.28,46.44]
[1761305656558,4.7026,191.35,191.27,2.82]
[1761305656761,1.28,191.34,191.27,5.68]
[1761305658161,1.28,191.34,191.26,46.36]
[1761305658551,4.703,191.33,191.25,2.82]
[1761305658753,1.28,191.33,191.24,46.36]
[1761305659661,4.7036,191.31,191.24,49.16]
[1761305660663,5.9836,191.31,191.24,49.12]
[1761305661560,4.7041,191.29,191.24,2.82]
[1761305661756,1.28,191.28,191.18,7.5265]
[1761305662062,4.7055,191.23,191.12,2.82]
[1761305662255,1.28,191.25,191.17,49.08]
[1761305662455,1.28,191.25,191.18,2.82]
[1761305662650,1.28,191.29,191.18,2.82]
[1761305663159,5.984,191.29,191.18,2.82]
[1761305663751,4.7035,191.32,191.2,2.82]
[1761305664764,4.7035,191.32,191.19,3.54411651]
[1761305664765,4.7035,191.32,191.22,2.82]
[1761305664951,5.9828,191.34,191.22,2.82]
[1761305665858,5.9828,191.34,191.23,4.7055]
[1761305666062,5.9828,191.34,191.24,2.82]
[1761305666262,4.7033,191.32,191.25,46.22]
[1761305666458,4.7033,191.32,191.24,2.82]
[1761305666660,4.7033,191.32,191.25,46.18]
[1761305666851,1.28,191.34,191.25,49.0]
[1761305667054,4.7027,191.35,191.26,2.82]
[1761305668256,4.7027,191.35,191.27,46.16]
[1761305668458,4.7027,191.35,191.27,48.98]
[1761305668653,4.7027,191.35,191.28,46.14]
[1761305668866,4.7027,191.35,191.29,2.66]
[1761305669460,5.9827,191.35,191.3,46.1]
[1761305669859,5.9827,191.35,191.3,48.79]
[1761305672676,4.7027,191.35,191.31,2.69]
[1761305672864,4.7027,191.35,191.3,48.79]
[1761305673065,4.7019,191.38,191.31,2.69]
[1761305673365,1.28,191.42,191.31,2.69]
[1761305673568,5.9809,191.42,191.33,2.69]
[1761305673966,5.9809,191.42,191.34,46.04]
[1761305674164,4.7003,191.44,191.35,2.69]
[1761305674370,4.82411651,191.47,191.35,2.69]
[1761305674770,1.28,191.47,191.35,2.69]
[1761305675780,4.7001,191.45,191.37,2.69]
[1761305676077,1.28,191.44,191.38,46.0]
[1761305676268,1.28,191.5,191.38,48.69]
[1761305676467,1.28,191.49,191.38,48.69]
[1761305677171,6.00750403,191.48,191.38,48.69]
[1761305677373,1.28,191.51,191.38,48.69]
[1761305677572,1.28,191.49,191.38,48.69]
[1761305677777,6.15741629,191.48,191.38,48.69]
[1761305678082,1.28,191.48,191.38,48.69]
[1761305678277,1.28,191.48,191.39,46.06]
[1761305678278,4.7007,191.43,191.39,46.06]
[1761305678470,4.7007,191.43,191.39,48.75]
[1761305678674,4.7007,191.43,191.4,46.02]
[1761305679879,4.7007,191.43,191.4,45.98]
[1761305680790,5.9807,191.43,191.4,45.98]
[1761305680981,4.701,191.42,191.35,2.69]
[1761305681483,4.701,191.42,191.36,45.96]
[1761305682280,4.701,191.42,191.36,48.65]
[1761305682784,4.701,191.42,191.36,2.69]
[1761305682990,4.701,191.42,191.38,2.69]
[1761305683178,4.701,191.42,191.39,45.92]
[1761305683383,8.85334114,191.41,191.39,45.92]
[1761305683583,4.701,191.42,191.39,45.92]
[1761305683786,10.13299012,191.41,191.34,2.69]
[1761305683991,10.13299012,191.4,191.34,2.69]
[1761305684191,10.13299012,191.39,191.35,45.88]
[1761305684488,4.04205441,191.38,191.35,45.88]
[1761305684692,4.04205441,191.37,191.35,45.88]
[1761305684889,4.04724972,191.36,191.28,2.69]
[1761305685093,4.0469089,191.35,191.3,2.69]
[1761305685394,4.04674042,191.34,191.3,2.69]
[1761305685587,4.70960154,191.38,191.3,2.69]
[1761305685793,4.04706757,191.37,191.31,45.86]
[1761305686090,4.7027,191.35,191.32,2.69]
[1761305686290,4.02643374,191.34,191.32,2.69]
[1761305686489,4.02624741,191.33,191.31,45.86]
[1761305686790,1.28,191.37,191.31,45.86]
[1761305686791,5.98960154,191.37,191.31,45.86]
[1761305686986,5.30623112,191.36,191.31,2.69]
[1761305687187,4.02623112,191.35,191.32,45.82]
[1761305687392,4.02623112,191.34,191.32,45.82]
[1761305687587,4.02623112,191.33,191.32,45.82]
[1761305687982,4.02623112,191.33,191.27,2.69]
[1761305688184,4.02623112,191.32,191.29,2.69]
[1761305688389,4.02623112,191.31,191.29,2.69]
[1761305688588,4.70960154,191.35,191.29,2.69]
[1761305688784,9.96250946,191.34,191.29,2.69]
[1761305689095,1.28,191.32,191.29,42.02]
[1761305689293,4.01805792,191.31,191.29,42.02]
[1761305689496,4.01805792,191.3,191.29,42.02]
[1761305689893,4.01805792,191.3,191.28,45.76]
[1761305690097,4.01805792,191.29,191.28,45.76]
[1761305690396,4.01805792,191.29,191.28,48.45]
[1761305690887,4.01805792,191.29,191.28,2.69]
[1761305691089,4.01805792,191.29,191.28,48.43]
[1761305691689,4.01805792,191.29,191.28,45.74]
[1761305692488,4.01805792,191.29,191.28,48.43]
[1761305693292,5.98960154,191.35,191.28,48.43]
[1761305693489,5.25384585,191.34,191.28,2.69]
[1761305693693,1.28,191.32,191.29,26.5]
[1761305693897,3.97384585,191.31,191.29,26.5]
[1761305694096,3.97384585,191.3,191.25,2.69]
[1761305694294,4.7037,191.31,191.27,2.69]
[1761305694599,3.97600102,191.3,191.27,2.69]
[1761305694801,5.9837,191.31,191.27,2.69]
[1761305696502,4.7037,191.31,191.27,2.69]
[1761305696713,4.70960154,191.38,191.27,2.69]
[1761305697005,5.25966434,191.37,191.27,2.69]
[1761305697190,4.7031,191.33,191.27,2.69]
[1761305698494,4.7031,191.33,191.29,2.69]
[1761305699494,4.7031,191.33,191.31,2.65]
[1761305699702,4.7025,191.35,191.31,2.65]
[1761305700099,4.7025,191.35,191.16,34.39]
[1761305700100,1.28,191.33,191.11,74.19575341]
[1761305700406,5.80142387,191.42,191.18,2.65]
[1761305700407,1.28,191.31,191.18,2.65]
[1761305700810,1.28,191.31,191.19,2.65]
[1761305701106,14.11400154,191.37,191.21,2.65]
[1761305701107,1.28,191.36,191.21,2.65]
[1761305701296,1.28,191.36,191.21,5.80142387]
[1761305701496,1.28,191.36,191.22,2.65]
[1761305701904,14.11170154,191.42,191.25,2.65]
[1761305701905,1.28,191.4,191.25,2.65]
[1761305702101,1.28,191.4,191.27,2.65]
[1761305702605,5.26277642,191.4,191.3,2.65]
[1761305702803,1.28,191.39,191.3,2.65]
[1761305703706,4.7027,191.35,191.3,2.65]
[1761305704198,1.28,191.39,191.3,2.65]
[1761305704697,4.7022,191.37,191.3,2.65]
[1761305704894,3.98552803,191.45,191.3,2.65]
[1761305705098,1.28,191.43,191.3,2.65]
[1761305705299,4.7019,191.38,191.3,7.3536]
[1761305705600,1.28,191.41,191.31,48.13]
[1761305707007,4.7024,191.36,191.32,2.65]
[1761305707398,1.28,191.41,191.32,2.65]
[1761305707609,1.28,191.4,191.32,18.77]
[1761305707808,4.7026,191.35,191.32,18.77]
[1761305708009,4.7026,191.35,191.32,2.65]
[1761305708312,4.7026,191.35,191.32,48.09]
[1761305708703,4.7022,191.37,191.32,48.09]
[1761305709809,4.7022,191.37,191.33,2.65]
[1761305710201,4.7024,191.36,191.32,45.44]
[1761305710405,1.28,191.36,191.32,45.44]
[1761305710605,1.28,191.36,191.29,2.65]
[1761305710804,1.28,191.36,191.3,48.03]
[1761305711599,1.28,191.36,191.3,2.65]
[1761305711912,1.28,191.36,191.31,45.36]
[1761305712115,5.9827,191.35,191.31,45.36]
[1761305712408,5.9827,191.35,191.31,48.01]
[1761305712813,5.9827,191.35,191.31,47.99]
[1761305713000,5.9827,191.35,191.32,45.34]
[1761305713303,5.9827,191.35,191.27,4.7044]
[1761305713304,4.703,191.34,191.27,2.65]
[1761305713509,1.28,191.35,191.28,45.32]
[1761305714114,1.28,191.35,191.28,47.97]
[1761305714313,4.7032,191.33,191.29,2.65]
[1761305714510,1.28,191.37,191.25,2.65]
[1761305714810,1.28,191.37,191.27,2.65]
[1761305714811,4.7029,191.34,191.27,2.65]
[1761305715413,4.7029,191.34,191.28,47.95]
[1761305716216,4.7029,191.34,191.29,2.65]
[1761305717909,4.7032,191.33,191.29,2.65]
[1761305718102,1.28,191.34,191.26,2.65]
[1761305718310,1.28,191.34,191.27,45.24]
[1761305718517,4.7037,191.31,191.27,45.24]
[1761305718717,4.7037,191.31,191.28,2.65]
[1761305719716,4.7037,191.31,191.29,45.22]
[1761305719914,1.28,191.3,191.2,62.0]
[1761305720122,1.28,191.35,191.21,2.65]
[1761305720319,1.28,191.33,191.22,45.2]
[1761305720516,4.704,191.3,191.23,2.65]
[1761305720815,1.28,191.32,191.23,2.65]
[1761305721015,1.28,191.33,191.24,45.18]
[1761305721208,1.28,191.32,191.2,2.65]
[1761305721409,1.28,191.3,191.16,2.65]
[1761305721609,4.7062,191.2,191.12,2.65]
[1761305721821,5.9862,191.2,191.13,45.18]
[1761305722012,5.9862,191.2,191.12,2.65]
[1761305722328,1.28,191.25,191.14,2.65]
[1761305722611,1.28,191.25,191.15,47.83]
[1761305722819,1.28,191.25,191.16,2.65]
[1761305724322,4.7057,191.23,191.17,45.18]
[1761305725617,1.28,191.25,191.18,45.16]
[1761305725618,4.7059,191.22,191.18,45.16]
[1761305725815,5.9859,191.22,191.18,45.16]
[1761305726621,5.9859,191.22,191.18,45.14]
[1761305727019,5.9859,191.22,191.18,45.12]
[1761305727217,4.7062,191.2,191.16,2.65]
[1761305727422,5.9862,191.2,191.17,45.12]
[1761305727914,4.7062,191.2,191.17,45.12]
[1761305728221,4.7062,191.2,191.18,45.1]
[1761305728720,5.9862,191.2,191.17,45.08]
[1761305729316,4.7062,191.2,191.17,45.08]
[1761305729515,4.7062,191.2,191.17,47.91]
[1761305730120,4.7066,191.19,191.17,45.08]
[1761305730526,4.7066,191.19,191.16,45.06]
[1761305731222,4.7069,191.18,191.16,45.06]
[1761305731623,4.7069,191.18,191.13,2.83]
[1761305731826,4.7071,191.17,191.14,47.87]
[1761305732013,4.7071,191.17,191.15,45.04]
[1761305733526,4.7071,191.17,191.14,2.83]
[1761305733732,4.7071,191.17,191.15,45.02]
[1761305734527,4.7071,191.17,191.16,45.0]
[1761305734528,5.9871,191.17,191.16,45.0]
[1761305735129,4.7073,191.16,191.11,2.83]
[1761305735329,5.9873,191.16,191.12,44.98]
[1761305735527,5.9873,191.16,191.11,2.83]
[1761305735726,4.7073,191.16,191.13,2.83]
[1761305735929,1.28,191.24,191.14,2.83]
[1761305736132,1.28,191.3,191.17,2.83]
[1761305736336,4.7052,191.25,191.19,2.83]
[1761305736522,1.28,191.29,191.19,2.83]
[1761305736932,1.28,191.29,191.2,44.98]
[1761305737633,4.7052,191.25,191.2,47.81]
[1761305737825,1.28,191.29,191.21,44.96]
[1761305738030,1.28,191.29,191.2,2.83]
[1761305738329,1.28,191.29,191.21,44.96]
[1761305738536,1.28,191.3,191.21,44.96]
[1761305739927,4.7054,191.24,191.21,44.96]
[1761305740935,4.7054,191.24,191.21,47.79]
[1761305741734,4.7054,191.24,191.22,2.83]
[1761305741934,4.7054,191.24,191.21,44.96]
[1761305742138,4.7054,191.24,191.21,47.79]
[1761305743038,4.7054,191.24,191.22,44.9]
[1761305743239,4.7054,191.24,191.21,2.83]
[1761305743440,4.7056,191.23,191.21,2.83]
[1761305743639,4.7056,191.23,191.22,44.88]
[1761305743843,4.7056,191.23,191.21,2.83]
[1761305744134,1.28,191.27,191.23,2.83]
[1761305744135,4.7051,191.25,191.23,2.83]
[1761305744634,1.28,191.3,191.23,2.83]
[1761305745136,4.7049,191.26,191.23,2.83]
[1761305746132,4.7051,191.25,191.23,2.83]
[1761305746331,1.28,191.3,191.24,47.69]
[1761305746938,1.28,191.34,191.27,2.83]
[1761305747334,4.7039,191.3,191.27,2.83]
[1761305748029,4.7034,191.32,191.27,2.83]
[1761305748341,4.7034,191.32,191.26,1.53871658]
[1761305748342,1.28,191.31,191.26,44.84]
[1761305748547,1.28,191.31,191.24,2.83]
[1761305748731,77.83790154,191.41,191.2,2.83]
[1761305748732,1.28,191.27,191.2,2.83]
[1761305748932,1.28,191.27,191.21,44.84]
[1761305749428,1.28,191.27,191.22,44.86]
[1761305749832,4.7054,191.24,191.22,47.69]
[1761305750841,4.7054,191.24,191.23,2.83]
[1761305751640,77.85310154,191.38,191.18,2.83]
[1761305751641,2.81871658,191.26,191.18,2.83]
[1761305751843,1.28,191.26,191.19,4.36871658]
[1761305752037,1.28,191.26,191.19,49.20871658]
[1761305752444,4.7056,191.23,191.2,2.83]
[1761305752638,4.7056,191.23,191.19,1.53871658]
[1761305752639,1.53871658,191.24,191.15,4.36871658]
[1761305752829,4.7062,191.21,191.17,2.83]
[1761305753030,5.9862,191.21,191.17,47.67]
[1761305753233,4.7062,191.21,191.18,2.83]
[1761305756441,4.7062,191.21,191.18,47.67]
[1761305757142,1.28,191.23,191.15,4.36871658]
[1761305757342,1.28,191.21,191.15,2.83]
[1761305757541,1.28,191.21,191.15,47.67]
[1761305758645,4.7069,191.18,191.16,2.83]
[1761305761553,4.7063,191.2,191.17,1.53871658]
[1761305761744,4.7063,191.2,191.18,2.65]
[1761305762051,4.7063,191.2,191.19,47.49]
[1761305762747,3.97695922,191.25,191.19,46.37871658]
[1761305762748,4.7059,191.22,191.19,46.37871658]
[1761305762954,3.97695922,191.26,191.19,1.53871658]
[1761305763151,1.29,191.25,191.2,47.49]
[1761305764152,4.7058,191.22,191.2,47.49]
[1761305764356,4.7058,191.22,191.21,4.18871658]
[1761305764747,1.29,191.28,191.21,1.53871658]
[1761305764954,1.29,191.28,191.23,4.18871658]
[1761305765953,4.7052,191.25,191.23,4.18871658]
[1761305766152,4.7052,191.25,191.24,2.65]
[1761305766351,1.29,191.28,191.25,2.65]
[1761305766550,1.29,191.28,191.26,1.53871658]
[1761305767742,1.29,191.3,191.26,1.53871658]
[1761305767955,4.7046,191.27,191.26,1.53871658]
[1761305768158,4.7046,191.27,191.25,47.49]
[1761305768356,4.7046,191.27,191.25,49.02871658]
[1761305769251,4.7046,191.27,191.12,9.4163]
[1761305769252,4.7054,191.24,191.23,1.53871658]
[1761305769451,4.7054,191.24,191.23,46.35871658]
[1761305771559,4.7054,191.24,191.23,49.00871658]
[1761305771748,1.29,191.32,191.23,46.35871658]
[1761305772054,3.97097247,191.31,191.25,1.53871658]
[1761305772359,1.29,191.32,191.25,1.53871658]
[1761305772552,5.26073882,191.31,191.25,1.53871658]
[1761305772851,1.29,191.31,191.27,1.53871658]
[1761305773857,1.29,191.31,191.27,4.18871658]
[1761305774058,4.7044,191.28,191.27,4.18871658]
[1761305774359,1.29,191.28,191.22,2.65]
[1761305774560,1.29,191.28,191.24,1.53871658]
[1761305774760,1.29,191.28,191.24,46.35871658]
[1761305775867,1.29,191.28,191.24,49.00871658]
[1761305776163,4.7051,191.25,191.24,49.00871658]
[1761305779263,1.29,191.31,191.25,2.65]
[1761305779461,1.29,191.31,191.28,1.53871658]
[1761305780365,4.7038,191.3,191.28,1.53871658]
[1761305780963,1.29,191.31,191.27,47.47]
[1761305781864,1.29,191.31,191.27,2.65]
[1761305782064,4.7043,191.28,191.27,47.45]
[1761305784063,9.406,191.34,191.28,2.65]
[1761305784064,3.9765687,191.33,191.28,2.65]
[1761305784263,1.29,191.34,191.31,1.53871658]
[1761305784463,3.97626211,191.33,191.31,1.53871658]
[1761305784666,1.29,191.34,191.31,1.53871658]
[1761305784869,3.97626233,191.33,191.31,1.53871658]
[1761305785172,1.29,191.35,191.31,1.53871658]
[1761305785374,5.26583341,191.34,191.31,1.53871658]
[1761305785573,3.97583426,191.33,191.31,1.53871658]
[1761305785774,1.29,191.34,191.31,1.53871658]
[1761305786079,4.7033,191.32,191.31,1.53871658]
[1761305786874,4.7033,191.32,191.31,4.18871658]
[1761305787869,4.85790355,191.4,191.31,4.18871658]
[1761305787870,1.29,191.41,191.32,2.65]
[1761305788071,5.25574691,191.4,191.38,1.53871658]
[1761305788272,1.28,191.4,191.38,1.53871658]
[1761305789575,4.7015,191.39,191.34,2.73]
[1761305789770,1.28,191.39,191.34,2.73]
[1761305789969,1.28,191.39,191.2,15.7]
[1761305790167,3.97038864,191.38,191.3,1.53871658]
[1761305790365,1.28,191.36,191.3,1.53871658]
[1761305790573,4.7035,191.32,191.3,1.53871658]
[1761305794498,1.28,191.4,191.31,2.82]
[1761305794790,1.28,191.38,191.33,1.53871658]
[1761305794990,4.7028,191.34,191.33,1.53871658]
[1761305796294,1.28,191.33,191.25,1.53871658]
[1761305796589,1.28,191.32,191.25,1.53871658]
[1761305796793,4.80001463,191.35,191.31,1.53871658]
[1761305797094,5.246297,191.37,191.31,1.53871658]
[1761305797288,1.28,191.37,191.31,1.53871658]
[1761305797688,5.246297,191.37,191.31,1.53871658]
[1761305797892,1.28,191.37,191.31,1.53871658]
[1761305798086,1.28,191.32,191.29,2.82]
[1761305798287,1.28,191.32,191.26,2.82]
[1761305798499,1.28,191.32,191.29,1.53871658]
[1761305798693,5.984,191.3,191.29,1.53871658]
[1761305798999,5.984,191.3,191.22,4.14]
[1761305799000,5.984,191.3,191.27,1.53871658]
[1761305799201,4.704,191.3,191.29,1.53871658]